fUSD/lending_fUSD_20240814
["ID","MTS","AMOUNT","RATE_DAILY","PERIOD"]
[334801819,1723593631188,150.0,0.00026392,120]
[334801822,1723593939921,202.40862554,8.264e-05,2]
[334801823,1723593939950,186.71137446,8.264e-05,2]
[334801841,1723594231641,-167.66,0.00010117,2]
[334801842,1723594231651,-158.99351333,0.00010127,2]
[334801843,1723594231660,-187.2,0.00010182,2]
[334801844,1723594231669,-3799.49141924,0.00010205,2]
[334801845,1723594231681,-641.43342479,0.00010205,2]
[334801846,1723594231737,-84.47515597,0.00010205,2]
[334801847,1723594231747,-212.8,0.0001046,2]
[334801848,1723594231757,-1000.0,0.00010477,2]
[334801849,1723594231769,-389.12,0.00010528,2]
[334801850,1723594231778,-300.0,0.00010629,2]
[334801851,1723594231788,-217.41648233,0.0001063,2]
[334801852,1723594231797,-348.10968709,0.0001063,2]
[334801853,1723594231807,-522.91773594,0.0001063,2]
[334801854,1723594231816,-303.98208233,0.0001063,2]
[334801855,1723594231826,-446.55,0.000107,2]
[334801856,1723594231835,-356.55,0.000107,2]
[334801857,1723594231844,-531.02,0.000107,2]
[334801858,1723594231855,-150.0,0.000107,2]
[334801859,1723594231865,-150.0,0.000107,2]
[334801860,1723594231874,-150.0,0.000107,2]
[334801861,1723594231883,-178.27,0.0001073,2]
[334801862,1723594231893,-150.0,0.00010799,2]
[334801863,1723594231902,-158.99351332,0.000108,2]
[334801864,1723594231912,-303.53,0.000108,2]
[334801865,1723594231922,-426.41,0.000108,2]
[334801867,1723594231931,-255.97272146,0.000108,2]
[334801869,1723594231944,-275.04727854,0.000108,2]
[334801871,1723594231953,-150.0,0.000108,2]
[334801872,1723594231963,-80.33887725,0.000108,2]
[334801873,1723594232039,-69.66112275,0.000108,2]
[334801874,1723594232049,-150.0,0.000108,2]
[334801875,1723594232058,-150.0,0.000108,2]
[334801876,1723594232067,-426.41,0.000108,2]
[334801877,1723594232078,-150.0,0.000108,2]
[334801878,1723594232087,-150.0,0.000108,2]
[334801879,1723594232098,-175.58951479,0.00010899,2]
[334801880,1723594232108,-137057.13416108,0.000109,2]
[334801881,1723594232147,-271.75775802,0.000109,2]
[334801882,1723594232158,-2666.29867666,0.000109,2]
[334801883,1723594232178,-3244.55441955,0.000109,2]
[334801889,1723594237787,-2894.2789726,0.000109,2]
[334801890,1723594237798,-98865.97601209,0.000109,2]
[334801891,1723594237808,-27692.15179393,0.000109,2]
[334801892,1723594237946,-1919.21378837,0.000109,2]
[334801893,1723594238002,-394.14575585,0.000109,2]
[334801894,1723594238016,-287.60795606,0.000109,2]
[334801895,1723594238058,-284.16954793,0.000109,2]
[334801896,1723594238123,-8574.55825786,0.000109,2]
[334801897,1723594238133,-1724.73734036,0.000109,2]
[334801898,1723594238145,-2841.5102928,0.000109,2]
[334801909,1723594239646,-2128.2593829,0.000109,2]
[334801910,1723594239710,-509.8065044,0.000109,2]
[334801912,1723594239809,-28057.62182234,0.000109,2]
[334801927,1723594245797,-418.84953567,0.000109,2]
[334801928,1723594245809,-298.66236919,0.000109,2]
[334801929,1723594245821,-453.46218221,0.000109,2]
[334801930,1723594245894,-641.14746183,0.000109,2]
[334801931,1723594245906,-1919.57705919,0.000109,2]
[334801932,1723594245918,-786.91456001,0.000109,2]
[334801933,1723594245930,-33339.0802891,0.000109,2]
[334801934,1723594245939,-500.0,0.000109,2]
[334801935,1723594245954,-221.73386158,0.000109,2]
[334801936,1723594245964,-160.59516296,0.000109,2]
[334801937,1723594245974,-620.76,0.00010959,2]
[334801938,1723594245983,-250.0,0.00010959,2]
[334801939,1723594245992,-193.4,0.00010976,2]
[334801940,1723594246002,-741.18,0.00010976,2]
[334801941,1723594246012,-299.99,0.00010976,2]
[334801942,1723594246022,-397.4026375,0.00010997,2]
[334801943,1723594246032,-334.2463212,0.00010997,2]
[334801944,1723594246042,-3010.3172208,0.00010997,2]
[334801945,1723594246052,-4686.7126827,0.00010997,2]
[334801947,1723594246062,-3367.4582042,0.00010997,2]
[334801949,1723594246071,-1240.3855327,0.00010997,2]
[334801950,1723594246080,-365.83277569,0.00010999,2]
[334801951,1723594246090,-9389.16,0.00011,2]
[334801952,1723594246099,-5819.34,0.00011,2]
[334801953,1723594246109,-1668.42,0.00011,2]
[334801955,1723594246118,-16420.62937676,0.00011,2]
[334801957,1723594246128,-212047.6544771,0.00011,2]
[334801959,1723594246139,-371.88291753,0.00011,2]
[334801961,1723594246151,-1324.8,0.00011,2]
[334801963,1723594246162,-545.64834686,0.00011,2]
[334801964,1723594246178,-344.849717,0.00011,2]
[334801965,1723594246189,-14753.4,0.00011,2]
[334801966,1723594246202,-443.62696749,0.00011,2]
[334801967,1723594246245,-25773.32341151,0.00011,2]
[334801968,1723594246257,-740.40033588,0.00011,2]
[334801969,1723594246268,-547.75460353,0.00011,2]
[334801970,1723594291419,150.0,0.00025778,120]
[334801971,1723594470722,150.0,0.00026669,120]
[334801972,1723594475622,379.66,8.352e-05,2]
[334801973,1723594530711,150.0,0.00024493,120]
[334801974,1723594588424,1499.99999,0.00025,60]
[334801975,1723594651095,150.0,0.00025175,120]
[334801976,1723594951388,150.0,0.00026793,120]
[334801977,1723594983266,360.67,8.275e-05,2]
[334801978,1723595010709,150.0,0.00025438,120]
[334801979,1723595131275,150.0,0.00026793,120]
[334801980,1723595244339,25000.0,2.5e-05,120]
[334802005,1723595431849,-550.0,0.0001,2]
[334802007,1723595431858,-210.95450085,0.0001,2]
[334802009,1723595431868,-305.51794143,0.00010056,2]
[334802011,1723595431879,-694.48205857,0.00010056,2]
[334802014,1723595431888,-170.24,0.00010112,2]
[334802015,1723595431897,-608.24794143,0.00010123,2]
[334802016,1723595431908,-1379.7419425,0.00010123,2]
[334802017,1723595431917,-1770.13278466,0.00010124,2]
[334802018,1723595431926,-200.0,0.00010162,2]
[334802019,1723595431935,-208.79,0.00010512,2]
[334802020,1723595431944,-12660.66254832,0.0001059,2]
[334802021,1723595431955,-2131.93745168,0.0001059,2]
[334802022,1723595431964,-150.99,0.00010613,2]
[334802023,1723595431974,-150.99,0.00010613,2]
[334802024,1723595431983,-631.3703325,0.00010613,2]
[334802025,1723595432015,-1732.2596675,0.00010613,2]
[334802026,1723595432025,-499.99,0.00010616,2]
[334802027,1723595432034,-380.07474477,0.00010616,2]
[334802028,1723595432045,-421.41525523,0.00010616,2]
[334802029,1723595432055,-1220.31,0.00010616,2]
[334802030,1723595432064,-178.27,0.0001063,2]
[334802031,1723595432073,-150.0,0.00010699,2]
[334802032,1723595432082,-733.4882,0.000107,2]
[334802033,1723595432092,-5928.4406,0.000107,2]
[334802035,1723595432101,-356.55,0.000107,2]
[334802037,1723595432111,-259.923,0.000107,2]
[334802038,1723595432120,-158.30587362,0.000107,2]
[334802039,1723595432139,-690.8245438,0.000107,2]
[334802042,1723595432179,-517.67,0.000107,2]
[334802045,1723595432191,-1008.46748258,0.000107,2]
[334802047,1723595432200,-812.21424742,0.000108,2]
[334802056,1723595438074,-4902.08754081,0.000108,2]
[334802057,1723595438085,-471.26757877,0.000108,2]
[334802058,1723595438139,-1109.20886868,0.000108,2]
[334802105,1723595438828,-13500.0,0.000108,2]
[334802110,1723595438859,-642.12023881,0.000108,2]
[334802113,1723595438882,-287.34726879,0.000108,2]
[334802115,1723595438893,-33466.52773018,0.000108,2]
[334802119,1723595438921,-63650.15497159,0.000108,2]
[334802200,1723595440028,-1041.56171997,0.000108,2]
[334802201,1723595440047,-29574.57782437,0.000108,2]
[334802202,1723595440176,-1641.30252,0.000108,2]
[334802203,1723595440210,-2942.05,0.000108,2]
[334802204,1723595440226,-35902.69645705,0.000108,2]
[334802205,1723595440239,-3017.256,0.000108,2]
[334802206,1723595440253,-2880.424834,0.000108,2]
[334802207,1723595440264,-362.572002,0.000108,2]
[334802208,1723595441073,342.63,8.906e-05,2]
[334802222,1723595442888,-13309.81674509,0.000108,2]
[334802223,1723595442944,-1656.315,0.000108,2]
[334802226,1723595443984,-340.68338463,0.000108,2]
[334802227,1723595443998,-947.40643778,0.000108,2]
[334802231,1723595446243,-896.1847932,0.000108,2]
[334802232,1723595446257,-1301.33763081,0.000108,2]
[334802235,1723595446613,-276.899955,0.000108,2]
[334802236,1723595446649,-5114.97780404,0.000108,2]
[334802237,1723595877634,1639.17622472,0.00010066,120]
[334802238,1723595996918,359.819171,9.985e-05,120]
[334802239,1723596054236,352.45,8.219e-05,2]
[334802240,1723596120660,37768.50587449,8.219e-05,2]
[334802241,1723596120687,145963.88459984,8.219e-05,2]
[334802242,1723596180062,-187.2,9.857e-05,2]
[334802243,1723596180085,-250.0,9.885e-05,2]
[334802244,1723596479361,2526.479115,9.639e-05,2]
[334802245,1723596514533,1000.0,9.646e-05,2]
[334802246,1723596540223,334.82,8.219e-05,2]
[334802247,1723596595475,401.43055068,0.00027,120]
[334802248,1723596620722,193.6,9.647e-05,2]
[334802264,1723596632325,-661.0,9.7e-05,2]
[334802265,1723596632335,-4428.15586786,9.701e-05,2]
[334802266,1723596632347,-689.90413214,9.701e-05,2]
[334802267,1723596632356,-173.15774171,9.701e-05,2]
[334802268,1723596632365,-180.45,9.761e-05,2]
[334802269,1723596632374,-200.0,9.788e-05,2]
[334802270,1723596632383,-300.0,9.961e-05,2]
[334802271,1723596632737,-1269.99023316,9.962e-05,2]
[334802272,1723596632793,-4087.53372105,9.962e-05,2]
[334802273,1723596632805,-493.08482481,9.962e-05,2]
[334802274,1723596632816,-413.47322908,9.962e-05,2]
[334802275,1723596632828,-777.495996,9.962e-05,2]
[334802276,1723596632867,-521.44331218,9.962e-05,2]
[334802277,1723596632879,-2470.24297497,9.962e-05,2]
[334802278,1723596632891,-1579.80960355,9.962e-05,2]
[334802279,1723596632902,-8770.3115774,9.962e-05,2]
[334802280,1723596632917,-1528.35103245,9.962e-05,2]
[334802281,1723596632928,-451.63886766,9.962e-05,2]
[334802282,1723596632939,-307.5,9.962e-05,2]
[334802283,1723596632950,-4082.1901667,9.962e-05,2]
[334802284,1723596632961,-615.77052,9.962e-05,2]
[334802285,1723596632973,-496.77,9.962e-05,2]
[334802286,1723596632985,-287.37338502,9.962e-05,2]
[334802288,1723596638424,-1041.06219095,9.962e-05,2]
[334802289,1723596638436,-3861.57904239,9.962e-05,2]
[334802290,1723596638448,-5602.10179368,9.962e-05,2]
[334802291,1723596638458,-1708.06409238,9.985e-05,2]
[334802292,1723596638469,-973.25190762,9.985e-05,2]
[334802293,1723596638479,-194.31787435,0.0001,2]
[334802294,1723596638490,-307.07755376,0.0001,2]
[334802295,1723596638510,-48.60457189,0.0001,2]
[334802296,1723596638522,-5164.63707251,0.0001,2]
[334802297,1723596638534,-1852.21292749,0.0001,2]
[334802298,1723596638543,-2330.41,0.0001,2]
[334802299,1723596638553,-150.0,0.00010027,2]
[334802300,1723596638563,-150.0,0.00010065,2]
[334802301,1723596638573,-162.73988333,0.00010066,2]
[334802302,1723596638583,-181.85162494,0.00010066,2]
[334802303,1723596638594,-413.17635557,0.00010066,2]
[334802304,1723596638603,-1050.7552299,0.00010066,2]
[334802305,1723596638613,-300.00869841,0.00010066,2]
[334802306,1723596638623,-170.51680053,0.00010066,2]
[334802307,1723596638633,-208.79,0.00010145,2]
[334802308,1723596638643,-755.87,0.00010178,2]
[334802309,1723596638652,-416.33,0.00010178,2]
[334802310,1723596638662,-356.25,0.00010178,2]
[334802312,1723596638672,-531.02,0.00010178,2]
[334802314,1723596638681,-384.04,0.00010178,2]
[334802315,1723596638691,-185.12,0.00010288,2]
[334802316,1723596638700,-458.48847983,0.000103,2]
[334802317,1723596638745,-376.93152017,0.000103,2]
[334802318,1723596638755,-392.36838551,0.000103,2]
[334802319,1723596638766,-28.68161449,0.000103,2]
[334802320,1723596638776,-356.55,0.00010378,2]
[334802322,1723596638785,-57.01838551,0.00010463,2]
[334802324,1723596638797,-277.80161449,0.00010463,2]
[334802326,1723596638806,-426.41,0.000105,2]
[334802328,1723596638816,-150.0,0.000105,2]
[334802330,1723596638826,-356.55,0.000105,2]
[334802332,1723596638836,-421.05,0.000105,2]
[334802334,1723596638845,-835.42,0.000105,2]
[334802337,1723596638855,-835.42,0.000105,2]
[334802339,1723596638865,-421.05,0.000105,2]
[334802341,1723596638874,-531.02,0.000105,2]
[334802342,1723596638884,-356.55,0.000105,2]
[334802344,1723596638894,-636.61,0.000105,2]
[334802346,1723596638904,-150.0,0.000105,2]
[334802348,1723596638913,-708.69,0.000105,2]
[334802351,1723596638923,-150.0,0.000105,2]
[334802353,1723596638932,-356.55,0.000105,2]
[334802355,1723596638942,-1143.5919,0.000106,2]
[334802357,1723596638951,-1000.0,0.000106,2]
[334802359,1723596638961,-500.0,0.000107,2]
[334802361,1723596638970,-726.912,0.000107,2]
[334802363,1723596638979,-25865.84914505,0.000107,2]
[334802370,1723596639046,-6266.03065695,0.000107,2]
[334802372,1723596639057,-1248.82727493,0.000107,2]
[334802381,1723596639146,-763.17482071,0.000107,2]
[334802383,1723596639157,-6436.81188391,0.000107,2]
[334802385,1723596639168,-515.28705452,0.000107,2]
[334802387,1723596639178,-1134.70787623,0.000107,2]
[334802391,1723596639204,-39590.8358826,0.000107,2]
[334802393,1723596639215,-4827.30619881,0.000107,2]
[334802395,1723596639226,-19137.89899619,0.000107,2]
[334802397,1723596639237,-4852.6012,0.000107,2]
[334802399,1723596639249,-10535.96684458,0.000107,2]
[334802465,1723596641351,-1560.49836776,0.000107,2]
[334802466,1723596641362,-1223.9293823,0.000107,2]
[334802467,1723596641373,-24104.6103854,0.000107,2]
[334802468,1723596641384,-540.18000005,0.000107,2]
[334802469,1723596641682,-347.78074878,0.000107,2]
[334802470,1723596641693,-503.4787228,0.000107,2]
[334802471,1723596641729,-307.46014093,0.000107,2]
[334802472,1723596641742,-17049.04648691,0.000107,2]
[334802473,1723596642984,-322.85018007,0.000107,2]
[334802474,1723596642999,-1079.800005,0.000107,2]
[334802475,1723596643012,-3891.36684221,0.000107,2]
[334802478,1723596643039,-680.67,0.000107,2]
[334802487,1723596643105,-3593.08737091,0.000107,2]
[334802501,1723596643425,-276.224985,0.000107,2]
[334802502,1723596643436,-2694.80145435,0.000107,2]
[334802504,1723596643543,-630.18302999,0.000107,2]
[334802514,1723596644621,-452.15233686,0.000107,2]
[334802515,1723596644634,-883.32723249,0.000107,2]
[334802516,1723596644646,-297.59077079,0.000107,2]
[334802517,1723596644661,-5081.13202292,0.000107,2]
[334802518,1723596644671,-356.55,0.000108,2]
[334802519,1723596644680,-150.0,0.000108,2]
[334802520,1723596644690,-2450.22587,0.000108,2]
[334802521,1723596644699,-1000.0,0.00010852,2]
[334802522,1723596644709,-157.61292635,0.00010899,2]
[334802523,1723596644719,-1000.0,0.000109,2]
[334802524,1723596644728,-170.57147776,0.000109,2]
[334802525,1723596644738,-5561.5086,0.000109,2]
[334802526,1723596644750,-553.9471,0.000109,2]
[334802527,1723596644759,-168.8587113,0.000109,2]
[334802528,1723596644769,-194.01712883,0.000109,2]
[334802529,1723596644779,-204.3760443,0.000109,2]
[334802530,1723596644789,-326.81458476,0.000109,2]
[334802531,1723596644798,-300.0,0.00010957,2]
[334802532,1723596644808,-250.0,0.00010959,2]
[334802533,1723596644817,-844.7,0.00010959,2]
[334802534,1723596644827,-14278.23553382,0.0001099,3]
[334802535,1723596644839,-711.51228327,0.0001099,3]
[334802536,1723596644850,-28926.98901746,0.0001099,3]
[334802537,1723596644859,-7334.6625838,0.00010997,2]
[334802538,1723596644869,-337.69179294,0.00010999,2]
[334802539,1723596644878,-12185.62256323,0.00011,2]
[334802540,1723596644888,-7141.1265513,0.00011,2]
[334802551,1723596646206,-14849.4273063,0.00011,2]
[334802552,1723596646217,-3337.89376783,0.00011,2]
[334802553,1723596646228,-1675.2,0.00011,2]
[334802554,1723596646265,-321.56691331,0.00011,2]
[334802555,1723596646328,-1981.35353,0.00011,2]
[334802556,1723596646340,-3006.8028,0.00011,2]
[334802563,1723597146124,325.74,8.219e-05,2]
[334802564,1723597251182,-1234.21832082,0.00011105,10]
[334802565,1723597394722,150.5,0.00017798,120]
[334802566,1723597395698,150.5,0.00017788,120]
[334802567,1723597396321,150.5,0.00017778,120]
[334802568,1723597397021,150.5,0.00017798,120]
[334802571,1723597632515,309.45,8.219e-05,2]
[334802587,1723597832235,-155.39597716,9.962e-05,2]
[334802588,1723597832247,-300.0,0.00010057,2]
[334802589,1723597832257,-101.68166531,0.00010058,2]
[334802590,1723597832268,-1679.06194262,0.00010058,2]
[334802591,1723597832280,-1203.63841064,0.00010058,2]
[334802592,1723597832291,-2514.72665498,0.00010058,2]
[334802593,1723597832302,-5711.12132645,0.00010058,2]
[334802594,1723597832311,-600.0,0.0001007,2]
[334802595,1723597832320,-438.28,0.00010075,2]
[334802596,1723597832330,-211.93,0.0001008,2]
[334802597,1723597832339,-185.15,0.00010094,2]
[334802598,1723597832349,-400.0,0.00010111,2]
[334802599,1723597832358,-170.99,0.0001025,2]
[334802600,1723597832368,-1094.17,0.00010369,2]
[334802601,1723597832377,-1008.03,0.00010369,2]
[334802602,1723597832386,-309.45,0.00010481,2]
[334802603,1723597832396,-1000.0,0.000106,2]
[334802604,1723597832406,-539.35006809,0.000108,2]
[334802605,1723597832415,-3197.21,0.000108,2]
[334802606,1723597832425,-150.0,0.00010899,2]
[334802607,1723597832436,-7900.81730035,0.000109,2]
[334802608,1723597832456,-929.99995,0.000109,2]
[334802611,1723597832468,-3332.62267,0.000109,2]
[334802612,1723597832497,-2722.12504729,0.000109,2]
[334802613,1723597832508,-40927.13163236,0.000109,2]
[334802614,1723597832518,-169.74522175,0.000109,2]
[334802615,1723597832527,-2261.0675,0.000109,2]
[334802616,1723597832538,-434.3118,0.000109,2]
[334802617,1723597832547,-7500.0,0.000109,2]
[334802618,1723597832556,-1946.0,0.000109,2]
[334802619,1723597832565,-250.0,0.00010959,2]
[334802620,1723597832574,-150.0,0.00010959,2]
[334802621,1723597832584,-200.05767972,0.00010973,2]
[334802622,1723597832593,-87523.80089384,0.0001099,2]
[334802623,1723597832602,-337.69179295,0.00010999,2]
[334802624,1723597832611,-499.99,0.00010999,2]
[334802625,1723597832620,-2254.99999901,0.00010999,2]
[334802626,1723597832629,-500.0,0.00010999,2]
[334802627,1723597832639,-500.0,0.00010999,2]
[334802628,1723597832648,-330.36810933,0.00010999,2]
[334802629,1723597832657,-95153.860894,0.00011,2]
[334802630,1723597832667,-519.0,0.00011,2]
[334802631,1723597832676,-196834.86797312,0.00011,2]
[334802632,1723597832688,-286633.53309831,0.00011,2]
[334802633,1723597832699,-334.17,0.00011,2]
[334802634,1723597832710,-300.0,0.00011,2]
[334802635,1723597832728,-2839.55549383,0.00011,2]
[334802636,1723597832762,-1306.0,0.00011,2]
[334802637,1723597832773,-9319.55914838,0.00011,2]
[334802638,1723597832784,-1215.07590594,0.00011,2]
[334802640,1723597838330,-6146.48825924,0.00011,2]
[334802641,1723597838343,-1495.67112458,0.00011,2]
[334802642,1723597838354,-1605.98,0.00011,2]
[334802643,1723597838406,-712.43225591,0.00011,2]
[334802644,1723597838417,-319183.63877786,0.00011,2]
[334802645,1723597838428,-2353.71601968,0.00011,2]
[334802646,1723597838557,-1741.0,0.00011,2]
[334802647,1723597838568,-5436.27545617,0.00011,2]
[334802648,1723597838638,-2756.36521699,0.00011,2]
[334802672,1723597840407,-9370.70016724,0.00011,2]
[334802673,1723597840440,-608.929994,0.00011,2]
[334802674,1723597840451,-374.07477111,0.00011,2]
[334802675,1723597840483,-15327.83962992,0.00011,2]
[334802676,1723597840494,-2917.5,0.00011,2]
[334802677,1723597840506,-1608.91586877,0.00011,2]
[334802678,1723597840517,-462.7030002,0.00011,2]
[334802679,1723597840536,-8659.12916749,0.00011,2]
[334802680,1723597840548,-321.65799432,0.00011,2]
[334802681,1723597840559,-582.08,0.00011,2]
[334802686,1723597843478,-1051143.92008492,0.00011,2]
[334802687,1723597843488,-372.08019945,0.00011,2]
[334802688,1723597843497,-1000.0,0.00011,2]
[334802689,1723597843506,-330609.97873042,0.00011,2]
[334802696,1723597844183,-1045176.59774671,0.00011,2]
[334802697,1723597844201,-1217.50675063,0.00011,2]
[334802698,1723597844212,-1433.76304378,0.00011,2]
[334802713,1723597846642,-854.0000454,0.00011,2]
[334802714,1723597846654,-500.0,0.00011,2]
[334802715,1723597846666,-695.19249147,0.00011,2]
[334802716,1723597846677,-431.59759551,0.00011,2]
[334802717,1723597846688,-628.775,0.00011,2]
[334802718,1723597846699,-3979.28148486,0.00011,2]
[334802719,1723597846768,-761.6228699,0.00011,2]
[334802855,1723597916435,200.0,0.00010945,30]
[334802856,1723597916494,200.0,0.00010945,30]
[334802857,1723597916539,200.0,0.00010945,30]
[334802858,1723597916604,200.0,0.00010945,30]
[334802859,1723597916651,204.23209497,0.00010945,30]
[334802860,1723598172031,302.28,8.404e-05,2]
[334802861,1723598673021,287.16,8.27e-05,2]
[334802867,1723598996936,318.92891829,0.00026967,120]
[334802896,1723599037629,-500.0,9.674e-05,2]
[334802897,1723599037639,-123.44199861,9.674e-05,2]
[334802898,1723599037801,-376.55800139,9.674e-05,2]
[334802899,1723599037810,-250.0,0.0001,2]
[334802900,1723599037820,-550.0,0.0001,2]
[334802901,1723599037830,-3374.09332125,0.00010017,2]
[334802902,1723599037841,-617.53442811,0.00010017,2]
[334802903,1723599037853,-3470.42225064,0.00010017,2]
[334802904,1723599037863,-155.08488605,0.00010024,2]
[334802905,1723599037872,-3.47674194,0.00010024,2]
[334802906,1723599037884,-294.37762462,0.00010024,2]
[334802907,1723599037893,-1000.0,0.00010102,2]
[334802908,1723599037903,-348.10968709,0.00010186,2]
[334802909,1723599037912,-174.01020829,0.00010186,2]
[334802910,1723599037924,-662.38007185,0.00010186,2]
[334802911,1723599037935,-421.23829857,0.00010186,2]
[334802912,1723599037945,-258.04165855,0.00010186,2]
[334802913,1723599037957,-268.7364251,0.00010186,2]
[334802914,1723599037966,-30.19943924,0.00010192,2]
[334802915,1723599037980,-163.43056076,0.00010192,2]
[334802916,1723599037989,-191.73,0.00010381,2]
[334802917,1723599037999,-287.16,0.00010533,2]
[334802918,1723599038008,-356.73711918,0.000106,2]
[334802919,1723599038120,-355.92288082,0.000106,2]
[334802920,1723599038130,-71.28131111,0.000106,2]
[334802921,1723599038171,-78.71868889,0.000106,2]
[334802922,1723599038182,-150.0,0.000106,2]
[334802923,1723599038191,-150.0,0.00010678,2]
[334802924,1723599038201,-150.0,0.000107,2]
[334802925,1723599038211,-264.09352802,0.000108,2]
[334802926,1723599038220,-150.0,0.00010899,2]
[334802927,1723599038230,-557.18778309,0.000109,2]
[334802935,1723599039615,-936.80534511,0.000109,2]
[334802937,1723599039626,-2909.99242204,0.000109,2]
[334802946,1723599041029,-2731.5585572,0.000109,2]
[334802947,1723599041043,-7816.40649256,0.000109,2]
[334802948,1723599041054,-169.74522175,0.000109,2]
[334802949,1723599041063,-7500.0,0.000109,2]
[334802950,1723599041073,-1000.0,0.000109,2]
[334802951,1723599041082,-252.9322,0.000109,2]
[334802952,1723599041092,-449.61806259,0.00010945,2]
[334802953,1723599041102,-1050.4512882,0.00010945,2]
[334802954,1723599041111,-162.69299549,0.00010945,2]
[334802955,1723599041121,-170.51680053,0.00010945,2]
[334802956,1723599041131,-181.85162494,0.00010945,2]
[334802957,1723599041141,-300.00869841,0.00010945,2]
[334802958,1723599041150,-413.17635557,0.00010945,2]
[334802959,1723599041160,-499.99,0.00010945,2]
[334802960,1723599041170,-1500.0,0.00010959,5]
[334802961,1723599041179,-157.04060658,0.00010998,2]
[334802962,1723599041190,-18973.62558822,0.00011,2]
[334802963,1723599041201,-602.19274427,0.00011,2]
[334802964,1723599041213,-500.0,0.00011,2]
[334802965,1723599041225,-59161.30203688,0.00011,2]
[334802966,1723599041236,-515.0,0.00011,2]
[334802967,1723599041245,-155361.21080829,0.00011,2]
[334802968,1723599041256,-1531.85830089,0.00011,2]
[334802969,1723599041267,-1180.22303273,0.00011,2]
[334802970,1723599041279,-7867.62292426,0.00011,2]
[334802971,1723599041414,-5903.69674638,0.00011,2]
[334802972,1723599041425,-633.57831327,0.00011,2]
[334802973,1723599041437,-1594.4435325,0.00011,2]
[334802983,1723599042725,-1919.52883686,0.00011,2]
[334802985,1723599042979,-688.56235155,0.00011,2]
[334802987,1723599042993,-283.18000005,0.00011,2]
[334802996,1723599043074,-75335.53635952,0.00011,2]
[334802998,1723599043086,-284.13554524,0.00011,2]
[334802999,1723599043748,-13268.78230178,0.00011,2]
[334803000,1723599043759,-2216.20762586,0.00011,2]
[334803001,1723599043772,-940.096497,0.00011,2]
[334803002,1723599043784,-942311.55388238,0.00011,2]
[334803003,1723599045344,-461.79753375,0.00011,2]
[334803004,1723599045357,-592.80296689,0.00011,2]
[334803005,1723599045440,-521.4381375,0.00011,2]
[334803006,1723599045451,-6246.50973598,0.00011,2]
[334803007,1723599045463,-3664.0000002,0.00011,2]
[334803010,1723599046425,-3854.16700004,0.00011,2]
[334803011,1723599046440,-313.06330969,0.00011,2]
[334803013,1723599046503,-14299.999998,0.00011,2]
[334803014,1723599046514,-5886.8478948,0.00011,2]
[334803015,1723599046525,-20484.1051674,0.00011,2]
[334803017,1723599219757,281.49,8.266e-05,2]
[334803018,1723599268047,155.21676257,8.266e-05,2]
[334803019,1723599286275,340.21670755,0.00027,120]
[334803029,1723599571990,209.61927886,0.00026967,120]
[334803030,1723599583067,209.61927886,0.00026967,120]
[334803032,1723599738768,288.61,8.219e-05,2]
[334803041,1723599944870,3000.0,0.00025,60]
[334803046,1723600195883,274.17,8.219e-05,2]
[334803049,1723600230070,155.0,0.00026967,120]
[334803053,1723600231707,-153.39,9.95e-05,2]
[334803054,1723600231716,-550.0,0.0001,2]
[334803055,1723600231726,-800.0,0.00010025,2]
[334803056,1723600231735,-300.0,0.0001005,2]
[334803057,1723600231745,-300.0,0.0001005,2]
[334803058,1723600231755,-250.0,0.00010051,2]